bitfinex-derivatives/quotes_BTCF0:USTF0_20250703
["timestamp","ask_amount","ask_price","bid_price","bid_amount"]
[1751535379642,1.13875559,109920.0,109910.0,0.01805188]
[1751535379940,2.20795559,109920.0,109910.0,0.01805188]
[1751535381148,1.13875559,109920.0,109910.0,0.01805188]
[1751535381346,2.20771559,109920.0,109910.0,0.01805188]
[1751535382237,1.28975559,109920.0,109910.0,0.01805188]
[1751535382437,2.35899559,109920.0,109910.0,0.01805188]
[1751535382951,1.28975559,109920.0,109910.0,0.01805188]
[1751535383144,2.35903559,109920.0,109910.0,0.01805188]
[1751535383747,2.11350848,109920.0,109910.0,0.01805188]
[1751535384243,2.35899559,109920.0,109910.0,0.01805188]
[1751535384935,2.37711021,109920.0,109910.0,0.01805188]
[1751535385131,2.1319431,109920.0,109910.0,0.01805188]
[1751535385534,1.73541599,109920.0,109910.0,0.09805188]
[1751535385733,1.9809031,109920.0,109910.0,0.08805188]
[1751535385938,1.9809031,109920.0,109910.0,0.15005188]
[1751535386838,1.9192031,109920.0,109910.0,0.15005188]
[1751535387239,1.83781397,109920.0,109910.0,0.15005188]
[1751535387445,1.6646678,109920.0,109910.0,0.60553899]
[1751535387642,0.5078893,109920.0,109910.0,0.96940489]
[1751535387945,0.56243007,109920.0,109910.0,0.95533642]
[1751535388145,0.57739903,109920.0,109910.0,0.95533642]
[1751535388347,0.52285826,109920.0,109910.0,0.95533642]
[1751535388749,0.52285826,109920.0,109910.0,1.20533642]
[1751535389242,0.5078893,109920.0,109910.0,0.95533642]
[1751535389447,0.32736847,109930.0,109920.0,0.1818893]
[1751535389648,0.71283937,109930.0,109920.0,1.05526352]
[1751535389951,0.6582986,109930.0,109920.0,1.48720752]
[1751535390152,0.6582986,109930.0,109920.0,1.24172041]
[1751535390348,0.6582986,109930.0,109920.0,1.25076585]
[1751535390645,0.6642986,109930.0,109920.0,1.24172041]
[1751535390847,0.6642986,109930.0,109920.0,0.38854999]
[1751535391046,0.6642986,109930.0,109920.0,0.62854999]
[1751535391346,0.6642986,109930.0,109920.0,0.44854999]
[1751535392046,0.6642986,109930.0,109920.0,0.63043929]
[1751535392240,0.6642986,109930.0,109920.0,0.61977641]
[1751535392437,0.6642986,109930.0,109920.0,0.44855084]
[1751535392640,0.6642986,109930.0,109920.0,0.41855084]
[1751535392939,0.1818893,109920.0,109910.0,0.00398341]
[1751535393146,0.5118893,109920.0,109910.0,0.30428341]
[1751535393339,0.5118893,109920.0,109910.0,0.33528341]
[1751535393541,0.5118893,109920.0,109910.0,0.31077052]
[1751535393742,0.5118893,109920.0,109910.0,0.14528341]
[1751535393948,0.5118893,109920.0,109910.0,0.35528341]
[1751535394345,0.75737641,109920.0,109910.0,0.13628341]
[1751535394543,0.78927641,109920.0,109910.0,0.13628341]
[1751535395351,1.0495024,109920.0,109910.0,0.07498341]
[1751535395547,1.1123024,109920.0,109910.0,0.00498341]
[1751535395849,0.86681529,109920.0,109910.0,0.00498341]
[1751535396048,0.92135606,109920.0,109910.0,0.00498341]
[1751535396250,0.86681529,109920.0,109910.0,0.00498341]
[1751535396648,0.92135606,109920.0,109910.0,0.00498341]
[1751535397349,0.90661718,109920.0,109910.0,0.00498341]
[1751535397558,0.92164705,109920.0,109910.0,0.00498341]
[1751535398645,1.99052705,109920.0,109910.0,0.00498341]
[1751535399352,1.99052705,109920.0,109910.0,0.01862309]
[1751535399757,0.67615994,109920.0,109910.0,0.08498341]
[1751535400062,1.74483994,109920.0,109910.0,0.08498341]
[1751535400362,1.93578628,109920.0,109910.0,0.13171288]
[1751535400563,0.55881917,109920.0,109910.0,0.31361878]
[1751535400763,1.39437917,109920.0,109910.0,0.55910589]
[1751535401057,1.39437917,109920.0,109910.0,0.59190589]
[1751535401450,1.39437917,109920.0,109910.0,0.34641878]
[1751535402062,1.39437917,109920.0,109910.0,0.16451288]
[1751535402958,1.42737917,109920.0,109910.0,0.16451288]
[1751535405163,1.4123493,109920.0,109910.0,0.16451288]
[1751535406368,1.4123493,109920.0,109910.0,0.13171288]
[1751535407964,1.4123493,109920.0,109910.0,0.09851288]
[1751535408671,1.65783641,109920.0,109910.0,0.09851288]
[1751535409175,1.4123493,109920.0,109910.0,0.28041878]
[1751535410175,1.4123493,109920.0,109910.0,0.34041878]
[1751535412975,1.4123493,109920.0,109910.0,0.32688931]
[1751535413477,1.4123493,109920.0,109910.0,0.57237642]
[1751535415281,1.4123493,109920.0,109910.0,0.32688931]
[1751535417182,1.4123493,109920.0,109910.0,0.57237642]
[1751535420281,1.4123493,109920.0,109910.0,0.58585613]
[1751535422685,1.4123493,109920.0,109910.0,0.5858653]
[1751535423686,1.4122693,109920.0,109910.0,0.57237642]
[1751535423886,1.4122693,109920.0,109910.0,0.60347642]
[1751535424982,1.46681007,109920.0,109910.0,0.60347642]
[1751535425685,0.63133007,109920.0,109910.0,0.60347642]
[1751535426976,0.63133007,109920.0,109910.0,0.98505792]
[1751535426977,0.3118893,109920.0,109910.0,0.98505792]
[1751535427178,0.1918893,109920.0,109910.0,0.98505792]
[1751535427374,0.5318893,109920.0,109910.0,0.98505792]
[1751535427585,0.5942893,109920.0,109910.0,0.98505792]
[1751535427779,0.5942893,109920.0,109910.0,0.8137618]
[1751535427978,0.5942893,109920.0,109910.0,0.6285131]
[1751535428378,0.5942893,109920.0,109910.0,0.61784922]
[1751535428579,0.4042893,109920.0,109910.0,0.62851293]
[1751535429281,0.2442893,109920.0,109910.0,0.62851293]
[1751535429487,0.3142893,109920.0,109910.0,0.62851293]
[1751535430194,0.3142893,109920.0,109910.0,0.65941293]
[1751535430384,0.2518893,109920.0,109910.0,0.65941293]
[1751535430680,0.2518893,109920.0,109910.0,0.69271293]
[1751535432388,0.1818893,109920.0,109910.0,0.69271293]
[1751535432593,0.0927,109930.0,109920.0,0.1818893]
[1751535432794,0.3818728,109930.0,109920.0,0.97286352]
[1751535433088,0.3818728,109930.0,109920.0,1.25010752]
[1751535433280,0.1818728,109930.0,109920.0,1.25010752]
[1751535434593,0.48598452,109940.0,109930.0,0.1818728]
[1751535434890,0.59358162,109940.0,109930.0,1.09865991]
[1751535435086,0.41171102,109940.0,109930.0,1.05148791]
[1751535435290,0.59356732,109940.0,109930.0,1.34148791]
[1751535435489,0.07171102,109940.0,109930.0,1.36852033]
[1751535435695,0.41462681,109950.0,109940.0,0.1818563]
[1751535435995,0.69411417,109950.0,109940.0,0.72348615]
[1751535436191,0.64865177,109950.0,109940.0,0.78518615]
[1751535436885,0.65765177,109950.0,109940.0,0.78518615]
[1751535437695,0.72907669,109950.0,109940.0,0.78518615]
[1751535439898,0.69907672,109950.0,109940.0,0.78518615]
[1751535442100,0.69907672,109950.0,109940.0,0.19799904]
[1751535442793,0.94456383,109950.0,109940.0,0.19799894]
[1751535446809,0.69907672,109950.0,109940.0,0.48799894]
[1751535447103,0.69907672,109950.0,109940.0,0.73348605]
[1751535449305,0.69907672,109950.0,109940.0,0.53348605]
[1751535449707,0.69907672,109950.0,109940.0,0.73348605]
[1751535450007,0.69907672,109950.0,109940.0,0.48799894]
[1751535450312,0.69907672,109950.0,109940.0,0.28799894]
[1751535450608,0.69907672,109950.0,109940.0,0.49799894]
[1751535451009,0.69907672,109950.0,109940.0,0.19799894]
[1751535451203,0.69907672,109950.0,109940.0,0.50799894]
[1751535451808,0.69906452,109950.0,109940.0,0.75348605]
[1751535453408,0.69906452,109950.0,109940.0,0.78358605]
[1751535453709,0.35906452,109950.0,109940.0,0.78358605]
[1751535453911,0.26226452,109950.0,109940.0,0.78358605]
[1751535454100,0.26226452,109950.0,109940.0,0.81408605]
[1751535455303,0.08042492,109950.0,109940.0,1.15408605]
[1751535455505,0.2272782,109970.0,109960.0,0.1818231]
[1751535455711,0.3499882,109970.0,109960.0,0.70731021]
[1751535456007,0.3499882,109970.0,109960.0,0.28]
[1751535456008,0.3822882,109970.0,109960.0,0.28]
[1751535456498,0.3822882,109970.0,109960.0,0.4618231]
[1751535456707,0.3912882,109970.0,109960.0,0.4618231]
[1751535457312,0.0731,109970.0,109960.0,0.70731021]
[1751535457611,0.2549065,109970.0,109960.0,0.73821021]
[1751535458112,0.2231065,109970.0,109960.0,0.73821021]
[1751535458314,0.0413,109970.0,109960.0,0.73821021]
[1751535458509,0.2231066,109970.0,109960.0,0.80351021]
[1751535459313,0.2231066,109970.0,109960.0,1.16351021]
[1751535459507,0.009,109970.0,109960.0,1.16351021]
[1751535459708,0.009,109970.0,109960.0,2.02546263]
[1751535459905,0.1908066,109970.0,109960.0,1.99843021]
[1751535460509,0.1908066,109970.0,109960.0,1.70843021]
[1751535460708,0.1908066,109970.0,109960.0,1.71843021]
[1751535460908,0.2362766,109970.0,109960.0,1.97024021]
[1751535461418,0.1948066,109970.0,109960.0,2.00024021]
[1751535461715,0.1948066,109970.0,109960.0,2.02727263]
[1751535461902,0.1948066,109970.0,109960.0,2.00950257]
[1751535462107,0.1818066,109970.0,109960.0,2.01450257]
[1751535462407,0.1818066,109970.0,109960.0,0.86032021]
[1751535462609,0.1818066,109970.0,109960.0,1.70516021]
[1751535462809,0.1818066,109970.0,109960.0,1.99516021]
[1751535463208,0.1828066,109970.0,109960.0,1.99216021]
[1751535463619,0.1828066,109970.0,109960.0,1.99016021]
[1751535463913,0.1838066,109970.0,109960.0,1.99016021]
[1751535464310,0.1838066,109970.0,109960.0,1.7446731]
[1751535464511,0.1838066,109970.0,109960.0,1.99928004]
[1751535465408,0.002,109970.0,109960.0,1.99928004]
[1751535465616,0.1838066,109970.0,109960.0,1.99928004]
[1751535466415,0.002,109970.0,109960.0,1.99928004]
[1751535466717,0.07195515,109980.0,109970.0,0.1818065]
[1751535466916,0.37266317,109990.0,109980.0,0.18179]
[1751535467217,0.28177057,109990.0,109980.0,0.99276422]
[1751535467411,0.1817862,109990.0,109980.0,2.27084422]
[1751535467915,0.30239782,110000.0,109990.0,0.1817735]
[1751535467916,0.42962735,110000.0,109990.0,0.1817735]
[1751535468113,0.42962735,110000.0,109990.0,0.77906061]
[1751535468511,0.35098455,110000.0,109990.0,0.77906061]
[1751535469018,0.4250972,110000.0,109990.0,0.81166061]
[1751535469226,0.44751241,110000.0,109990.0,0.81166061]
[1751535469820,0.44751241,110000.0,109990.0,0.81266061]
[1751535470018,0.44751241,110000.0,109990.0,0.5027735]
[1751535470227,0.47811241,110000.0,109990.0,0.5027735]
[1751535471719,0.48111241,110000.0,109990.0,0.5027735]
[1751535473025,0.47811241,110000.0,109990.0,0.5027735]
[1751535473224,0.47911241,110000.0,109990.0,0.5027735]
[1751535473820,0.4566972,110000.0,109990.0,0.5027735]
[1751535474022,0.47911101,110000.0,109990.0,0.5027735]
[1751535474329,0.72459812,110000.0,109990.0,0.5027735]
[1751535476827,0.77913889,110000.0,109990.0,0.5027735]
[1751535477521,0.53365178,110000.0,109990.0,0.5027735]
[1751535477826,0.53365001,110000.0,109990.0,0.5027735]
[1751535479429,0.53366086,110000.0,109990.0,0.5027735]
[1751535485128,0.47912009,110000.0,109990.0,0.5027735]
[1751535485728,0.47912009,110000.0,109990.0,0.74826061]
[1751535486222,0.53366086,110000.0,109990.0,0.74826061]
[1751535489333,0.5337323,110000.0,109990.0,0.74826061]
[1751535492430,0.4882904,110000.0,109990.0,0.74826061]
[1751535492826,0.4882904,110000.0,109990.0,0.5027735]
[1751535493132,0.4882904,110000.0,109990.0,0.74826061]
[1751535494328,0.47335815,110000.0,109990.0,0.74826061]
[1751535495232,0.47335815,110000.0,109990.0,0.77986061]
[1751535497336,0.15416603,110000.0,109990.0,1.14986061]
[1751535497637,0.15416603,110000.0,109990.0,1.21186061]
[1751535498137,0.15416603,110000.0,109990.0,0.9663735]
[1751535498336,0.15416603,110000.0,109990.0,1.21186061]
[1751535498838,0.33592303,110000.0,109990.0,1.21186061]
[1751535499534,0.15416603,110000.0,109990.0,1.21186061]
[1751535499930,0.15416603,110000.0,109990.0,1.2285761]
[1751535500438,0.15416603,110000.0,109990.0,2.0646161]
[1751535502337,0.33592303,110000.0,109990.0,1.81912899]
[1751535502537,0.33592303,110000.0,109990.0,2.0646161]
[1751535503038,0.15416603,110000.0,109990.0,2.0646161]
[1751535503343,0.08158149,110020.0,110010.0,0.1817405]
[1751535503641,0.35054303,110030.0,110020.0,0.1817239]
[1751535503838,0.35054303,110030.0,110020.0,0.72841101]
[1751535504040,0.35054303,110030.0,110020.0,0.75861101]
[1751535504943,0.35054303,110030.0,110020.0,0.5131239]
[1751535505142,0.35054303,110030.0,110020.0,0.75861101]
[1751535505641,0.35054303,110030.0,110020.0,0.5131239]
[1751535505939,0.35054303,110030.0,110020.0,0.5141239]
[1751535506545,0.25967353,110030.0,110020.0,0.5141239]
[1751535506840,0.33071214,110030.0,110020.0,0.75961101]
[1751535507140,0.33171214,110030.0,110020.0,0.75961101]
[1751535509947,0.33171214,110030.0,110020.0,0.72941101]
[1751535510138,0.36251214,110030.0,110020.0,0.72941101]
[1751535512744,0.08720474,110030.0,110020.0,1.07941101]
[1751535512945,0.001,110030.0,110020.0,1.07941101]
[1751535514252,0.1827074,110030.0,110020.0,1.07941101]
[1751535514949,0.001,110030.0,110020.0,1.07941101]
[1751535515246,0.02252151,110030.0,110020.0,1.07941101]
[1751535516142,0.02252151,110030.0,110020.0,0.8339239]
[1751535516447,0.02252151,110030.0,110020.0,1.07941101]
[1751535516847,0.20422891,110030.0,110020.0,0.8339239]
[1751535517049,0.02252151,110030.0,110020.0,1.07941101]
[1751535518647,0.02252151,110030.0,110020.0,1.91945101]
[1751535522147,0.02252151,110030.0,110020.0,2.21195101]
[1751535523751,0.001,110030.0,110020.0,2.21195101]
[1751535524445,0.02250466,110030.0,110020.0,2.21195101]
[1751535524647,0.20421206,110030.0,110020.0,1.83127101]
[1751535524842,0.2792074,110030.0,110020.0,0.99071101]
[1751535525046,0.2792074,110030.0,110020.0,1.83103101]
[1751535525245,0.30071248,110030.0,110020.0,1.83103101]
[1751535527347,0.30071248,110030.0,110020.0,1.5855439]
[1751535527648,0.30071248,110030.0,110020.0,1.83103101]
[1751535528051,0.30071248,110030.0,110020.0,1.2930439]
[1751535528247,0.30071248,110030.0,110020.0,1.53917101]
[1751535529454,0.2792074,110030.0,110020.0,1.53917101]
[1751535530048,0.2792074,110030.0,110020.0,1.53897101]
[1751535530352,0.2792074,110030.0,110020.0,1.2934839]
[1751535530543,0.2792074,110030.0,110020.0,1.53897101]
[1751535531652,0.2792074,110030.0,110020.0,1.2934439]
[1751535531853,0.2792074,110030.0,110020.0,1.53893101]
[1751535534757,0.2792074,110030.0,110020.0,0.69821101]
[1751535534956,0.2792074,110030.0,110020.0,1.53889101]
[1751535537857,0.2792074,110030.0,110020.0,0.69821101]
[1751535538058,0.2792074,110030.0,110020.0,1.53905101]
[1751535541254,0.2792074,110030.0,110020.0,1.2935639]
[1751535541454,0.2792074,110030.0,110020.0,1.57489786]
[1751535541657,0.2792074,110030.0,110020.0,1.53905101]
[1751535541860,0.2792074,110030.0,110020.0,0.69821101]
[1751535542059,0.2792074,110030.0,110020.0,1.53857101]
[1751535544557,0.52469451,110030.0,110020.0,0.271]
[1751535544757,0.1817239,110020.0,110010.0,0.21758355]
[1751535544954,0.49261101,110020.0,110010.0,0.1817367]
[1751535545154,0.2471239,110020.0,110010.0,0.1817367]
[1751535545556,0.26232166,110020.0,110010.0,0.1817367]
[1751535545758,0.26232166,110020.0,110010.0,0.5117367]
[1751535546157,0.26232166,110020.0,110010.0,0.5127367]
[1751535548164,0.0654,110020.0,110010.0,0.5127367]
[1751535548662,0.2471239,110020.0,110010.0,0.75822381]
[1751535548963,0.2471239,110020.0,110010.0,0.5127367]
[1751535549164,0.2471239,110020.0,110010.0,0.75822381]
[1751535549659,0.2471239,110020.0,110010.0,0.5127367]
[1751535550061,0.2471239,110020.0,110010.0,0.75822381]
[1751535550966,0.2471239,110020.0,110010.0,0.77471703]
[1751535554469,0.2471239,110020.0,110010.0,0.7743933]
[1751535555970,0.2471239,110020.0,110010.0,0.52890619]
[1751535556268,0.2471239,110020.0,110010.0,0.7743933]
[1751535560273,0.49261101,110020.0,110010.0,0.52890619]
[1751535560774,0.49261101,110020.0,110010.0,0.19890619]
[1751535561166,0.2471239,110020.0,110010.0,0.47890619]
[1751535561370,0.2471239,110020.0,110010.0,0.19890619]
[1751535561675,0.2471239,110020.0,110010.0,0.19890999]
[1751535562076,0.49261101,110020.0,110010.0,0.01716949]
[1751535562370,0.2471239,110020.0,110010.0,0.01716949]
[1751535562576,0.49261101,110020.0,110010.0,0.01716949]
[1751535563880,0.50169443,110020.0,110010.0,0.01716949]
[1751535564272,1.35125443,110020.0,110010.0,0.01716949]
[1751535565072,1.40552349,110020.0,110010.0,0.28716949]
[1751535565379,1.35125443,110020.0,110010.0,0.01716949]
[1751535566378,1.40552349,110020.0,110010.0,0.01716949]
[1751535572380,0.55596349,110020.0,110010.0,0.26890999]
[1751535572578,0.31047638,110020.0,110010.0,0.26890999]
[1751535572783,1.11773296,110020.0,110010.0,0.7143971]
[1751535572986,1.11773296,110020.0,110010.0,0.7467971]
[1751535573887,1.36319157,110020.0,110010.0,0.7467686]
[1751535574087,0.51455157,110020.0,110010.0,0.7467686]
[1751535574284,1.15025296,110020.0,110010.0,0.7467686]
[1751535574492,1.39571157,110020.0,110010.0,0.7467686]
[1751535574691,1.39571157,110020.0,110010.0,0.50130999]
[1751535575186,1.39571157,110020.0,110010.0,0.5567686]
[1751535575384,1.35041081,110020.0,110010.0,0.7467686]
[1751535575689,1.35041081,110020.0,110010.0,0.5467686]
[1751535575888,1.1049522,110020.0,110010.0,0.54678221]
[1751535576084,1.0959839,110020.0,110010.0,0.73678221]
[1751535577891,1.10527885,110020.0,110010.0,0.73678221]
[1751535578085,1.10527885,110020.0,110010.0,0.49130999]
[1751535578291,1.10527885,110020.0,110010.0,0.73678221]
[1751535579291,1.0959839,110020.0,110010.0,0.73678221]
[1751535581493,0.2470239,110020.0,110010.0,0.73678221]
[1751535581697,1.0627439,110020.0,110010.0,0.73678221]
[1751535581885,1.0627439,110020.0,110010.0,0.76738221]
[1751535582188,1.12629702,110020.0,110010.0,0.76738221]
[1751535582693,1.11701296,110020.0,110010.0,0.76738221]
[1751535583893,1.11701296,110020.0,110010.0,0.52190999]
[1751535584092,1.11701296,110020.0,110010.0,0.76738221]
[1751535585695,1.11701296,110020.0,110010.0,0.79928221]
[1751535586086,0.26909296,110020.0,110010.0,0.79928221]
[1751535586286,1.11605296,110020.0,110010.0,0.79928221]
[1751535586487,1.08295296,110020.0,110010.0,0.79928221]
[1751535588197,0.23599296,110020.0,110010.0,0.79928221]
[1751535588392,0.1817239,110020.0,110010.0,0.79928221]
[1751535596695,0.1817239,110020.0,110010.0,0.78311272]
[1751535597899,0.42718502,110020.0,110010.0,0.78310162]
[1751535600500,0.45968502,110020.0,110010.0,0.78310162]
[1751535602501,0.2142239,110020.0,110010.0,0.78310162]
[1751535602802,0.49088502,110020.0,110010.0,0.78310162]
[1751535603702,0.49088502,110020.0,110010.0,0.75120162]
[1751535605102,0.2454239,110020.0,110010.0,0.75120162]
[1751535605302,0.49088502,110020.0,110010.0,0.75120162]
[1751535606798,0.52298502,110020.0,110010.0,0.75120162]
[1751535608997,0.52298502,110020.0,110010.0,0.72060162]
[1751535609909,0.52298502,110020.0,110010.0,0.4751405]
[1751535610203,0.52298502,110020.0,110010.0,0.68820162]
[1751535610408,0.76844614,110020.0,110010.0,0.1827405]
[1751535610603,0.76844614,110020.0,110010.0,0.42820162]
[1751535611803,0.76844614,110020.0,110010.0,0.001]
[1751535612307,0.8227152,110020.0,110010.0,0.001]
[1751535612808,0.33179296,110020.0,110010.0,0.001]
[1751535613109,0.8227152,110020.0,110010.0,0.001]
[1751535615304,0.76844614,110020.0,110010.0,0.001]
[1751535615602,0.84093242,110020.0,110010.0,0.001]
[1751535620214,0.84093242,110020.0,110010.0,0.051]
[1751535620811,0.76844614,110020.0,110010.0,0.051]
[1751535623014,1.07669242,110020.0,110010.0,0.051]
[1751535623809,1.07669242,110020.0,110010.0,0.05]
[1751535624012,0.181757,110000.0,109990.0,0.4125867]
[1751535624212,0.68759109,110000.0,109990.0,0.28]
[1751535624407,0.8346866,110000.0,109990.0,0.28]
[1751535625018,0.8346866,110000.0,109990.0,0.4617735]
[1751535625218,0.78019109,110000.0,109990.0,0.4667735]
[1751535625514,0.78944207,110000.0,109990.0,0.4697735]
[1751535626518,0.29851983,110000.0,109990.0,0.4697735]
[1751535626718,0.53472997,110000.0,109990.0,0.71523462]
[1751535627014,0.53472997,110000.0,109990.0,0.74553462]
[1751535627812,0.78019109,110000.0,109990.0,0.288]
[1751535628013,0.76527924,110000.0,109990.0,0.4697735]
[1751535628213,0.77429974,110000.0,109990.0,0.018]
[1751535628616,0.2833775,110000.0,109990.0,0.318]
[1751535628916,0.2833775,110000.0,109990.0,0.4997735]
[1751535629120,0.77429974,110000.0,109990.0,0.008]
[1751535629310,0.77429974,110000.0,109990.0,0.018]
[1751535629504,0.82879525,110000.0,109990.0,0.008]
[1751535631507,0.84384639,110000.0,109990.0,0.008]
[1751535632017,0.84384639,110000.0,109990.0,0.278]
[1751535632616,0.31390365,110000.0,109990.0,0.70523462]
[1751535632814,0.31390365,110000.0,109990.0,0.75371913]
[1751535632815,0.06954665,110000.0,109990.0,0.75371913]
[1751535633016,0.19680814,110000.0,109990.0,0.78401913]
[1751535633221,0.01505114,110000.0,109990.0,0.78401913]
[1751535633523,0.43546371,110010.0,109990.0,0.78401913]
[1751535633524,0.2726295,110010.0,110000.0,0.181757]
[1751535633725,0.2726295,110010.0,110000.0,1.05577924]
[1751535633919,0.2726295,110010.0,110000.0,0.81033044]
[1751535634823,0.2271908,110010.0,110000.0,0.81033044]
[1751535635015,0.2271908,110010.0,110000.0,0.81133044]
[1751535637027,0.2271908,110010.0,110000.0,0.81433044]
[1751535640424,0.2271908,110010.0,110000.0,0.568857]
[1751535640631,0.2271908,110010.0,110000.0,0.81433044]
[1751535640831,0.2271908,110010.0,110000.0,0.88433044]
[1751535641230,0.2271908,110010.0,110000.0,1.12433044]
[1751535641832,0.2271908,110010.0,110000.0,0.81433044]
[1751535642126,0.1817528,110010.0,110000.0,1.14433044]
[1751535642832,0.1817528,110010.0,110000.0,0.81433044]
[1751535643036,0.1817528,110010.0,110000.0,0.89433044]
[1751535643237,0.1817528,110010.0,110000.0,0.648857]
[1751535643436,0.1817528,110010.0,110000.0,0.81433044]
[1751535644326,0.1817528,110010.0,110000.0,0.52433044]
[1751535644527,0.1817528,110010.0,110000.0,0.85433044]
[1751535645034,0.1817528,110010.0,110000.0,0.608857]
[1751535646337,0.42722624,110010.0,110000.0,0.608857]
[1751535646539,0.49202624,110010.0,110000.0,0.577357]
[1751535647134,0.52412624,110010.0,110000.0,0.547057]
[1751535647737,0.2786528,110010.0,110000.0,0.547057]
[1751535648239,0.2465528,110010.0,110000.0,0.547057]
[1751535648440,0.37252931,110020.0,110010.0,0.1817404]
[1751535648644,0.2271664,110020.0,110010.0,0.74901384]
[1751535648841,0.2271664,110020.0,110010.0,0.78161384]
[1751535649237,0.2271664,110020.0,110010.0,0.8961404]
[1751535649439,0.1817352,110020.0,110010.0,1.14161384]
[1751535649639,0.1817352,110020.0,110010.0,1.14261384]
[1751535650352,0.1817352,110020.0,110010.0,0.5371404]
[1751535651147,0.1817352,110020.0,110010.0,0.55366685]
[1751535654346,0.42720864,110020.0,110010.0,0.49016685]
[1751535654538,0.49130864,110020.0,110010.0,0.45926685]
[1751535659952,0.2458352,110020.0,110010.0,0.45926685]
[1751535660253,0.49130864,110020.0,110010.0,0.45926685]
[1751535660450,0.2458352,110020.0,110010.0,0.45926685]
[1751535662149,0.2458352,110020.0,110010.0,0.70474029]
[1751535662843,0.30033071,110020.0,110010.0,0.70474029]
[1751535664255,0.23623071,110020.0,110010.0,0.73694029]
[1751535664456,0.23623071,110020.0,110010.0,0.76954029]
[1751535664856,0.43750301,110030.0,110020.0,0.1817239]
[1751535665052,0.43750301,110030.0,110020.0,0.82409734]
[1751535665358,0.3830075,110030.0,110020.0,0.82409734]
[1751535666157,0.3385771,110030.0,110020.0,0.82409734]
[1751535667560,0.3385771,110030.0,110020.0,0.5465239]
[1751535669265,0.3385771,110030.0,110020.0,0.5139239]
[1751535669468,0.61655054,110030.0,110020.0,0.5149239]
[1751535669869,0.3710771,110030.0,110020.0,0.5139239]
[1751535670069,0.001,110030.0,110020.0,0.76039734]
[1751535670368,0.1827074,110030.0,110020.0,0.79199734]
[1751535670561,0.1827074,110030.0,110020.0,1.13199734]
[1751535670763,0.001,110030.0,110020.0,1.13199734]
[1751535671266,0.001,110030.0,110020.0,1.15199734]
[1751535671471,0.4244056,110040.0,110030.0,0.1817074]
[1751535671670,0.4244056,110040.0,110030.0,0.52105755]
[1751535672773,0.0752273,110040.0,110030.0,1.12653099]
[1751535672964,0.2569182,110040.0,110030.0,1.19203099]
[1751535673359,0.2579182,110040.0,110030.0,1.19203099]
[1751535673967,0.2579182,110040.0,110030.0,1.19503099]
[1751535674369,0.2579182,110040.0,110030.0,1.15503099]
[1751535674567,0.003,110040.0,110030.0,1.33679099]
[1751535674771,0.002,110040.0,110030.0,1.33679099]
[1751535674971,0.002,110040.0,110030.0,1.44679099]
[1751535675273,0.002,110040.0,110030.0,1.44779099]
[1751535677177,0.002,110040.0,110030.0,1.45693351]
[1751535679473,0.7216,110050.0,110040.0,0.1816909]
[1751535679675,0.7216,110050.0,110040.0,0.78156434]
[1751535679878,0.7216,110050.0,110040.0,1.14156434]
[1751535680280,0.7216,110050.0,110040.0,0.78156434]
[1751535680572,0.7216,110050.0,110040.0,0.78256434]
[1751535680773,0.7216,110050.0,110040.0,1.09256434]
[1751535681671,0.7216,110050.0,110040.0,0.8470909]
[1751535681874,0.7216,110050.0,110040.0,1.09256434]
[1751535683783,0.7216,110050.0,110040.0,0.85256434]
[1751535685378,0.06727432,110050.0,110040.0,1.65978178]
[1751535685680,0.06727432,110050.0,110040.0,1.41430834]
[1751535686471,0.06727432,110050.0,110040.0,1.09430834]
[1751535686675,0.06727432,110050.0,110040.0,1.24256434]
[1751535687185,0.06727432,110050.0,110040.0,0.98256434]
[1751535687576,0.06727432,110050.0,110040.0,1.58978178]
[1751535687871,0.06727432,110050.0,110040.0,1.67978178]
[1751535689484,0.06727432,110050.0,110040.0,0.91256434]
[1751535689685,0.06727432,110050.0,110040.0,1.27256434]
[1751535690378,0.06727432,110050.0,110040.0,1.69978178]
[1751535692277,0.06727432,110050.0,110040.0,1.94978178]
[1751535692473,2e-08,110050.0,110040.0,1.94978178]
[1751535692876,2e-08,110050.0,110040.0,1.69978178]
[1751535695982,2e-08,110050.0,110040.0,1.94978178]
[1751535696182,8e-08,110070.0,110040.0,1.95478178]
[1751535696382,8e-08,110070.0,110060.0,0.67260478]
[1751535696586,8e-08,110070.0,110060.0,1.24577524]
[1751535696783,8e-08,110070.0,110060.0,1.14018724]
[1751535696984,8e-08,110070.0,110060.0,1.13847524]
[1751535697284,8e-08,110070.0,110060.0,1.18847524]
[1751535697886,8e-08,110070.0,110060.0,1.18947524]
[1751535698185,8e-08,110070.0,110060.0,1.20947524]
[1751535700285,0.002,110080.0,110070.0,0.1816414]
[1751535700485,0.002,110080.0,110070.0,1.38768828]
[1751535701681,0.003,110080.0,110070.0,1.56938428]
[1751535701988,0.06356764,110110.0,110100.0,0.1815919]
[1751535702183,0.00922767,110110.0,110100.0,1.23050948]
[1751535702388,0.1815754,110110.0,110100.0,1.78169618]
[1751535702589,0.1815754,110110.0,110100.0,1.38629908]
[1751535702888,0.2289581,110120.0,110110.0,0.1815754]
[1751535703084,0.1835589,110120.0,110110.0,0.90198084]
[1751535703280,0.002,110160.0,110120.0,0.0453897]
[1751535703481,0.18167574,110190.0,110150.0,0.79795896]
[1751535703788,6.782e-05,110190.0,110180.0,0.48718186]
[1751535704085,6.782e-05,110190.0,110180.0,0.77718186]
[1751535704283,6.782e-05,110190.0,110180.0,0.753312]
[1751535704480,0.18151132,110190.0,110180.0,0.47752186]
[1751535704680,0.18146,110180.0,110170.0,0.01616052]
[1751535704880,0.62824664,110180.0,110160.0,0.07223687]
[1751535705085,0.4644268,110160.0,110150.0,0.01616484]
[1751535705383,0.0453779,110150.0,110130.0,0.18482101]
[1751535705578,0.6006131,110140.0,110130.0,0.16]
[1751535705781,0.2722945,110140.0,110130.0,0.16]
[1751535705978,0.77018156,110140.0,110130.0,0.16]
[1751535706591,0.76518156,110140.0,110130.0,0.16]
[1751535707090,0.76518156,110140.0,110130.0,0.31]
[1751535707286,0.76518156,110140.0,110130.0,0.313]
[1751535707494,0.76518156,110140.0,110130.0,0.273]
[1751535707989,0.76518156,110140.0,110130.0,0.093]
[1751535708183,1.01518156,110140.0,110130.0,0.10692987]
[1751535708380,0.76518156,110140.0,110130.0,0.01692987]
[1751535708692,0.82918156,110140.0,110130.0,0.01692987]
[1751535709394,0.1815589,110120.0,110110.0,0.00181628]
[1751535709589,0.1815589,110120.0,110110.0,0.04581051]
[1751535709792,0.5235927,110120.0,110110.0,0.04581051]
[1751535710093,0.5556927,110120.0,110110.0,0.05581051]
[1751535710484,0.5556927,110120.0,110110.0,0.05881051]
[1751535710684,0.86241456,110120.0,110110.0,0.00481628]
[1751535710891,1.16813642,110120.0,110110.0,9e-08]
[1751535711387,0.86241456,110120.0,110110.0,9e-08]
[1751535711782,0.5566927,110120.0,110110.0,9e-08]
[1751535711978,0.86241456,110120.0,110110.0,0.00200009]
[1751535712195,0.86141456,110120.0,110110.0,0.00200009]